[Event "EICC 2025"]
[Site "Eforie-Nord"]
[Date "2025.03.15"]
[Round "1.40"]
[White "Kuzubov, Yuriy"]
[Black "Negrean, Andrei"]
[Result "1/2-1/2"]
[Annotator "TA"]
[ECO "A30"]
[WhiteElo "2603"]
[BlackElo "2280"]
[PlyCount "123"]
[EventDate "2025.03.14"]
[EventType "swiss"]
[EventCountry "ROU"]
[SourceTitle "playchess.com"]
[Source "ChessBase"]
[SourceQuality "1"]
[TimeControl "40/5400+30:1800+30"]

{[%evp 21,123,44,49,39,70,59,56,50,51,21,48,43,33,20,12,16,18,21,18,17,21,23,26,22,25,7,8,0,0,0,42,48,43,43,29,35,80,83,80,85,85,85,91,82,179,191,181,187,118,85,191,170,312,297,320,309,271,274,292,300,308,310,427,320,231,0,0,9,84,80,83,0,0,0,0,0,0,0,0,0,0,0,0,0,0,0,0,0,0,0,0,0,0,0,0,0,0,0,0,0,0,0,0,0]} 1. c4 {[%emt 0:00:04]} Nf6 {[%emt 0:00:18]} 2. Nf3 {[%emt 0:00:07]} c5 {[%emt 0:00:31]} 3. g3 {[%emt 0:00:51]} b6 {[%emt 0:00:37]} 4. Bg2 {[%emt 0:00:05]} Bb7 {[%emt 0:00:09]} 5. O-O {[%emt 0:00:08]} e6 {[%emt 0:00:47]} 6. Re1 {[%emt 0:00:13]} d6 {[%emt 0:06:18]} 7. Nc3 {[%emt 0:01:11]} a6 {[%emt 0:01:30]} 8. e4 {[%emt 0:01:04]} Be7 {[%emt 0:02:10]} 9. d4 {[%emt 0:00:15]} cxd4 {[%emt 0:00:09]} 10. Nxd4 {[%emt 0:00:06]} Qc7 {[%emt 0:00:31]} 11. Be3 {[%emt 0:00:20]} Nbd7 {[%emt 0:01:01][%cal Od7e5]} 12. f4 {[%emt 0:10:05] A30: Symmetrical English: Double Fianchetto and Hedgehog.} h5 {[%emt 0:07:42]} 13. h3 {[%emt 0:02:17] Repels Ng4} O-O {[%emt 0:05:48]} 14. Rc1 {[%emt 0:00:27] White is slightly better.} Rfe8 {[%emt 0:16:44]} 15. g4 {[%emt 0:06:48]} hxg4 {[%emt 0:02:34]} 16. hxg4 {[%emt 0:00:05]} Nc5 {[%emt 0:01:09][%cal Rf6e4]} 17. Bf2 {[%emt 0:28:02]} d5 {[%emt 0:01:08]} 18. e5 {[%emt 0:10:57]} (18. cxd5 Qxf4 19. Be3 Qxg4 $17) 18... Nfe4 {[%emt 0:02:29]} 19. Be3 {[%emt 0:10:15]} (19. cxd5 Nxf2 20. Kxf2 Bh4+ 21. Kf1 Bxe1 22. Kxe1 exd5 $17) 19... Nxc3 $146 {[%emt 0:07:47]} (19... dxc4 {seems wilder.} 20. Nxe4 Nxe4 21. Qc2 Nc5) (19... Rad8 20. Qe2 Nxc3 21. Rxc3 dxc4 22. Qxc4 Bxg2 23. Kxg2 Qb7+ 24. Nf3 Qd5 25. Re2 Qa8 26. Bxc5 Bxc5 {½-½ Krivoshey,S (2503)-Agrest,E (2574) Griesheim GM 3rd 2003 (9)}) 20. Rxc3 {[%emt 0:00:35]} dxc4 {[%emt 0:02:48]} 21. Rxc4 {[%emt 0:00:14]} Bxg2 {[%emt 0:08:46]} 22. Kxg2 {[%emt 0:00:05]} Qb7+ {[%emt 0:01:28]} 23. Qf3 {[%emt 0:00:33] Active counter play!} Qxf3+ $1 {[%emt 0:01:25]} 24. Kxf3 {[%emt 0:03:24]} Nd3 {[%emt 0:06:34][%csl LRb2,LRe1]} 25. Re2 {[%emt 0:00:47]} Rac8 {[%emt 0:04:35]} 26. Rxc8 {[%emt 0:11:59]} Rxc8 {[%emt 0:00:03]} 27. Rd2 {[%emt 0:00:58]} Nb4 {[%emt 0:01:08]} 28. f5 {[%emt 0:01:42][%cal Bf4f5,Bf5f6][%mdl 32]} Nc6 {[%emt 0:09:16]} 29. Nxc6 {[%emt 0:01:15]} (29. fxe6 Nxe5+ 30. Kf4 Ng6+ 31. Kg3 (31. Ke4 Re8 $17) 31... fxe6 $11) 29... Rxc6 $16 {[%emt 0:00:02][%mdl 4096] Endgame KRB-KRB} 30. Rd7 {[%emt 0:00:08]} Bc5 {[%emt 0:02:07]} 31. Rd8+ {[%emt 0:02:39]} Kh7 {[%emt 0:00:05]} 32. Bg5 {[%emt 0:00:05]} Rc7 {[%emt 0:06:30]} (32... f6 $16 33. exf6 exf5) 33. f6 $1 $18 {[%emt 0:03:18]} g6 {[%emt 0:00:49]} 34. a3 {[%emt 0:00:49]} a5 {[%emt 0:00:33]} 35. Ke4 {[%emt 0:01:08]} Ra7 {[%emt 0:00:55]} (35... Bf2 $16 {keeps fighting.}) 36. Rd1 {[%emt 0:01:34] Rh1+ would kill now.} Bf8 {[%emt 0:00:34]} (36... Ra8 $142 37. Rh1+ Kg8) 37. Be3 {[%emt 0:00:28]} (37. Rd8 Bc5 38. Bd2 Bg1 $16) 37... Rb7 {[%emt 0:00:24]} 38. Rh1+ {[%emt 0:02:42]} ({Resist} 38. Rd8 Bc5 39. g5 Rc7 40. Bxc5 Rxc5 $18) 38... Kg8 {[%emt 0:00:01]} 39. Rc1 {[%emt 0:00:30]} Bc5 {[%emt 0:02:02]} 40. Bxc5 {[%emt 0:02:17]} bxc5 41. Rxc5 {[%emt 0:28:27]} Rxb2 {[%emt 0:30:38]} 42. Rxa5 {[%emt 0:00:06] KR-KR. White is a pawn up.} g5 {[%emt 0:00:43]} 43. Ra4 $2 {[%emt 0:00:00]} (43. Ra7 $1 $18) 43... Rg2 $1 $11 {[%emt 0:00:00]} 44. Kf3 {[%emt 0:00:00]} Rc2 {[%emt 0:00:00] [#]} (44... Rd2 $11 {keeps the balance.}) 45. Ke3 $1 $16 {[%emt 0:00:00]} Kh7 {[%emt 0:00:00] [#]} 46. Kd3 {[%emt 0:00:42]} (46. Kd4 $1 $16) 46... Rg2 $11 {[%emt 0:00:00] The position is equal.} 47. Rd4 {[%emt 0:02:52]} Rg3+ {[%emt 0:00:00]} 48. Kc4 {[%emt 0:00:04]} Rxa3 {[%emt 0:00:00]} 49. Kc5 {[%emt 0:00:15]} Ra8 {[%emt 0:00:11]} 50. Rd7 {[%emt 0:00:33]} Kg6 {[%emt 0:00:41]} 51. Kd6 {[%emt 0:01:15]} Ra4 {[%emt 0:01:59]} 52. Rd8 {[%emt 0:00:44]} Rxg4 {[%emt 0:01:08]} 53. Rg8+ {[%emt 0:00:44]} Kf5 {[%emt 0:00:35] ...Ra4 would now be deadly.} 54. Rg7 {[%emt 0:00:16]} Ra4 {[%emt 0:00:29]} 55. Rxf7 {[%emt 0:00:19]} Ra6+ {[%emt 0:00:03]} 56. Ke7 {[%emt 0:00:30] Rg7 is the strong threat.} Kxe5 {[%emt 0:00:18]} 57. Rg7 {[%emt 0:00:23]} Ra7+ {[%emt 0:01:20]} 58. Kf8 {[%emt 0:00:20]} Ra8+ {[%emt 0:00:52]} 59. Ke7 {[%emt 0:00:04]} Ra7+ {[%emt 0:00:49]} 60. Kf8 {[%emt 0:00:06]} Ra8+ {[%emt 0:00:09]} 61. Ke7 {[%emt 0:00:06]} Ra7+ {[%emt 0:00:56]} 62. Kf8 {[%emt 0:00:06] Black escapes into a draw.   Weighted Error Value: White=0.14 (very precise) /Black=0.14 (very precise)   Missed win:     	White=1     	---        Mistake:       	White=1     	Black=4      Inaccurate:     	White=1     	Black=5      OK:         	White=30    	Black=19     Best:        	---       	Black=9      Strong:       	White=2     	Black=2} 1/2-1/2

[Event "EICC 2025"]
[Site "Eforie-Nord"]
[Date "2025.03.15"]
[Round "1.40"]
[White "Dodoi, Matei-Teodor"]
[Black "Iskandarov, Misratdin"]
[Result "0-1"]
[Annotator "ChessBase"]
[ECO "A64"]
[WhiteElo "2172"]
[BlackElo "2524"]
[PlyCount "108"]
[EventDate "2025.03.14"]
[EventType "swiss"]
[EventCountry "ROU"]
[SourceTitle "playchess.com"]
[Source "ChessBase"]
[SourceQuality "1"]
[TimeControl "40/5400+30:1800+30"]

1. d4 {[%emt 0:00:05]} Nf6 {[%emt 0:00:24]} 2. c4 {[%emt 0:00:12]} g6 {[%emt 0:00:11]} 3. Nf3 {[%emt 0:00:10]} Bg7 {[%emt 0:00:16]} 4. g3 {[%emt 0:00:10]} c5 {[%emt 0:00:53]} 5. d5 {[%emt 0:00:23]} O-O {[%emt 0:00:52]} 6. Nc3 {[%emt 0:01:32]} e6 {[%emt 0:00:28]} 7. Bg2 {[%emt 0:00:20]} exd5 {[%emt 0:00:09]} 8. cxd5 {[%emt 0:00:12]} d6 {[%emt 0:00:11]} 9. O-O {[%emt 0:00:17]} Re8 {[%emt 0:00:06]} 10. Nd2 {[%emt 0:05:34]} Nbd7 {[%emt 0:01:56]} 11. e4 {[%emt 0:10:30]} a6 {[%emt 0:04:26]} 12. a4 {[%emt 0:01:56]} Rb8 {[%emt 0:00:24]} 13. Nc4 {[%emt 0:00:54]} Ne5 {[%emt 0:06:52]} 14. Nxe5 {[%emt 0:00:17]} Rxe5 {[%emt 0:00:06]} 15. a5 {[%emt 0:04:07]} Re8 {[%emt 0:01:12]} 16. Qc2 {[%emt 0:04:48]} Nd7 {[%emt 0:05:51]} 17. Re1 {[%emt 0:09:13]} b5 {[%emt 0:03:11]} 18. axb6 {[%emt 0:00:46]} Qxb6 {[%emt 0:00:12]} 19. Na4 {[%emt 0:11:15]} Qb3 {[%emt 0:01:00]} 20. Qxb3 {[%emt 0:19:22]} Rxb3 {[%emt 0:00:23]} 21. Re3 {[%emt 0:02:43]} Rb8 {[%emt 0:01:15]} 22. Bd2 {[%emt 0:00:54]} Bd4 {[%emt 0:01:46]} 23. Ree1 {[%emt 0:04:01]} Ne5 {[%emt 0:02:35]} 24. Bc3 {[%emt 0:03:59]} Bg4 {[%emt 0:04:49]} 25. Bxd4 {[%emt 0:13:46]} cxd4 {[%emt 0:00:15]} 26. f4 {[%emt 0:01:59]} Nf3+ {[%emt 0:01:44]} 27. Bxf3 {[%emt 0:00:04]} Bxf3 {[%emt 0:00:06]} 28. e5 {[%emt 0:00:41]} dxe5 {[%emt 0:08:30]} 29. fxe5 {[%emt 0:00:47]} Bxd5 {[%emt 0:02:22]} 30. Rad1 {[%emt 0:00:23]} Rb4 {[%emt 0:00:39]} 31. Nc5 {[%emt 0:00:36]} Rxb2 {[%emt 0:12:50]} 32. Nd7 {[%emt 0:02:14]} Bb3 {[%emt 0:07:09]} 33. Nf6+ {[%emt 0:00:58]} Kf8 {[%emt 0:00:05]} 34. Nxe8 {[%emt 0:01:37]} Bxd1 {[%emt 0:00:07]} 35. Rxd1 {[%emt 0:00:06]} Kxe8 {[%emt 0:00:04]} 36. Rxd4 {[%emt 0:00:04]} Rb7 {[%emt 0:02:57]} 37. Ra4 {[%emt 0:01:29]} Ra7 {[%emt 0:00:06]} 38. Kf2 {[%emt 0:00:28]} Kd7 {[%emt 0:00:54]} 39. Ke3 {[%emt 0:00:04]} Kc6 {[%emt 0:00:06]} 40. Kd4 {[%emt 0:01:03]} Kb5 {[%emt 0:00:10]} 41. Ra1 {[%emt 0:30:15]} Rd7+ {[%emt 0:30:17]} 42. Kc3 {[%emt 0:00:00]} a5 {[%emt 0:00:00]} 43. Re1 {[%emt 0:00:00]} Rc7+ {[%emt 0:00:00]} 44. Kd3 {[%emt 0:00:00]} a4 {[%emt 0:00:00]} 45. Rb1+ {[%emt 0:00:00]} Ka5 {[%emt 0:00:00]} 46. Rb8 {[%emt 0:00:00]} a3 {[%emt 0:00:00]} 47. g4 {[%emt 0:00:00]} Rc6 {[%emt 0:00:00]} 48. Rb3 {[%emt 0:00:00]} Ka4 {[%emt 0:00:00]} 49. Rb8 {[%emt 0:00:00]} a2 {[%emt 0:00:00]} 50. Ra8+ {[%emt 0:00:00]} Kb3 {[%emt 0:00:00]} 51. Rb8+ {[%emt 0:00:00]} Ka3 {[%emt 0:00:00]} 52. Ra8+ {[%emt 0:00:00]} Kb2 {[%emt 0:00:00]} 53. Rb8+ {[%emt 0:00:00]} Kc1 {[%emt 0:00:00]} 54. Ra8 {[%emt 0:01:41]} Rc2 {[%emt 0:00:00]} 0-1

[Event "EICC 2025"]
[Site "Eforie-Nord"]
[Date "2025.03.15"]
[Round "1.41"]
[White "Dubnevych, Maksym"]
[Black "Kozak, Adam"]
[Result "1/2-1/2"]
[Annotator "TA"]
[ECO "B40"]
[WhiteElo "2279"]
[BlackElo "2601"]
[PlyCount "94"]
[EventDate "2025.03.14"]
[EventType "swiss"]
[EventCountry "ROU"]
[SourceTitle "playchess.com"]
[Source "ChessBase"]
[SourceQuality "1"]
[TimeControl "40/5400+30:1800+30"]

{[%evp 12,94,18,24,31,12,33,-1,36,41,23,37,52,16,32,16,26,28,62,37,40,25,33,26,79,19,79,26,16,29,96,74,95,76,73,83,94,94,89,86,104,85,91,62,62,66,69,62,64,64,71,34,26,41,59,62,51,60,54,60,30,0,77,82,115,17,15,21,16,5,5,5,5,5,6,4,4,9,10,12,11,8,11,8,8]} 1. Nc3 {[%emt 0:00:38]} c5 {[%emt 0:00:57]} 2. Nf3 {[%emt 0:00:31]} e6 {[%emt 0:01:01]} 3. d4 {[%emt 0:00:24]} cxd4 {[%emt 0:00:12]} 4. Nxd4 {[%emt 0:00:25]} Nf6 {[%emt 0:04:00]} 5. e4 {[%emt 0:00:57]} Bb4 {[%emt 0:00:07]} 6. Bd3 {[%emt 0:05:13]} Bxc3+ {[%emt 0:15:18] 6...d6 is the modern continuation.} 7. bxc3 {[%emt 0:00:06]} d6 {[%emt 0:00:05] B40: Sicilian: 2...e6, Unusual lines.} 8. O-O {[%emt 0:03:47]} a6 {[%emt 0:02:39]} 9. a4 {[%emt 0:06:04]} Qc7 {[%emt 0:03:26]} 10. Ba3 {[%emt 0:01:48]} Nbd7 {[%emt 0:04:45]} 11. Nb3 $146 {[%emt 0:06:08] Dodges b6} ({Predecessor:} 11. Qe1 Nc5 12. Nb3 e5 13. Nxc5 dxc5 14. Qe3 Nd7 15. Qg3 O-O 16. Bc1 Kh8 17. f4 {0-1 Dauw,S (1958)-Decoster,S (2126) Brasschaat op 17th 2017 (4)}) 11... b6 {[%emt 0:06:49][%cal Oc8b7]} 12. Re1 {[%emt 0:10:25]} Bb7 {[%emt 0:03:43][%cal Oe8g8]} 13. c4 {[%emt 0:06:36][%cal Oa4a5]} O-O {[%emt 0:09:44] [#]} 14. a5 $1 {[%emt 0:10:57]} Rfc8 {[%emt 0:12:07]} (14... bxa5 15. e5) 15. axb6 {[%emt 0:08:09]} Qxb6 {[%emt 0:01:54]} 16. Rb1 {[%emt 0:00:56][%cal Ob3c5] Nc5! is the strong threat.} Qc7 {[%emt 0:02:16]} 17. Qd2 {[%emt 0:01:46]} Bc6 {[%emt 0:03:54]} (17... a5 $11) 18. f3 {[%emt 0:07:20]} (18. Qa5 $16) 18... Ne8 {[%emt 0:07:32]} (18... a5 $11 {remains equal.}) 19. Bf1 {[%emt 0:02:19]} (19. Bb4 $16) 19... Ba4 {[%emt 0:02:29]} 20. Red1 {[%emt 0:03:43]} Nc5 {[%emt 0:10:07]} (20... a5 $11) 21. Nxc5 $16 {[%emt 0:04:45]} dxc5 {[%emt 0:00:03]} 22. Qc3 {[%emt 0:03:00]} Nf6 {[%emt 0:04:45]} 23. Rd2 {[%emt 0:04:49]} Rd8 {[%emt 0:01:30]} 24. Rxd8+ {[%emt 0:01:25]} Rxd8 {[%emt 0:00:05]} 25. Ra1 {[%emt 0:00:36]} Be8 {[%emt 0:02:58]} 26. Bc1 {[%emt 0:01:47]} Ra8 {[%emt 0:00:11]} 27. Ra5 {[%emt 0:01:51]} Nd7 {[%emt 0:00:48]} 28. Be3 {[%emt 0:00:01]} Qb6 {[%emt 0:00:33]} 29. Qa3 {[%emt 0:00:59]} h6 {[%emt 0:00:12]} 30. h3 {[%emt 0:01:10]} (30. Bxc5 Nxc5 31. Qxc5 Qxc5+ 32. Rxc5 a5 $15) 30... f6 {[%emt 0:00:47]} 31. f4 {[%emt 0:02:57][%cal Of1d3]} (31. Bxc5 Nxc5 32. Qxc5 Qxc5+ 33. Rxc5 a5 $15) 31... Bg6 {[%emt 0:00:31]} 32. Bd3 {[%emt 0:00:12]} (32. Bxc5 Nxc5 33. Qxc5 Qxc5+ 34. Rxc5 a5 $15 (34... Bxe4 35. Ra5 $15)) 32... Qc6 {[%emt 0:00:23]} 33. e5 {[%emt 0:02:18]} ({But not} 33. Bxc5 Bxe4 34. Be7 Bxg2 $11 (34... Bxd3 35. cxd3 e5 36. Qd6 $16)) 33... Bxd3 {[%emt 0:00:21]} 34. cxd3 {[%emt 0:00:07]} fxe5 35. fxe5 {[%emt 0:00:01]} (35. Bxc5 exf4 36. Bd4 Nf6 $11) 35... Qc7 {[%emt 0:01:17]} 36. Bxc5 {[%emt 0:00:22]} (36. Rxa6 Rxa6 37. Qxa6 Qxe5 38. Bf2) 36... Qxe5 {[%emt 0:00:28]} (36... Nxc5 $11 37. Rxc5 (37. Qxc5 Qxc5+ 38. Rxc5 Rd8 $11) 37... Qd7) 37. Bf2 {[%emt 0:00:06]} (37. Rxa6 $2 Rxa6 (37... Qxc5+ $2 38. Qxc5 Nxc5 39. Rxa8+ $18) 38. Qxa6 Nxc5 $19 (38... Qxc5+ $2 39. Kh1 $19)) 37... Qe2 {[%emt 0:00:31] [#] ...Rf8 is the strong threat.} 38. Qc3 {[%emt 0:03:17]} (38. Rxa6 $2 Rf8 39. Qd6 (39. Bg3 $2 Rf1+ 40. Kh2 Qd1 $19) 39... Qxf2+ $19) (38. Qd6 $1 $16 {[%cal Rd6d7]} Rf8 39. Qg3) 38... Rf8 $11 {[%emt 0:00:31] The position is equal.} 39. Qe1 {[%emt 0:01:20]} Qxd3 {[%emt 0:00:30]} 40. Qxe6+ {[%emt 0:00:25]} (40. Rxa6 {simplifies} Qxc4 41. Rxe6 Nf6 42. Qe5) 40... Kh7 {[%emt 0:00:24][%cal Of8f2]} 41. Rd5 {[%emt 0:04:36]} (41. Rxa6 $2 {too greedy.} Rf6 42. c5 Rxe6 $19 (42... Qxa6 $2 43. Qxd7 Qa1+ 44. Kh2 $19)) 41... Qb1+ {[%emt 0:03:52]} 42. Qe1 {[%emt 0:00:26] Active counter play!} Qxe1+ {[%emt 0:01:16]} 43. Bxe1 {[%emt 0:00:02]} Nb6 {[%emt 0:00:08][%csl LRc4,LRd5]} 44. Rd6 {[%emt 0:01:47]} Nxc4 {[%emt 0:01:02]} 45. Rxa6 {[%emt 0:00:03]} Re8 {[%emt 0:00:37]} 46. Bf2 {[%emt 0:00:52]} Re7 {[%emt 0:01:50]} 47. Ra7 {[%emt 0:00:12]} Rxa7 {[%emt 0:00:06] Weighted Error Value: White=0.16 (very precise) /Black=0.14 (very precise)   Mistake:       	White=3     	Black=4      Inaccurate:     	White=5     	Black=3      OK:         	White=16    	Black=17     Best:        	White=2     	Black=1} 1/2-1/2

[Event "EICC 2025"]
[Site "Eforie-Nord"]
[Date "2025.03.15"]
[Round "1.42"]
[White "Vocaturo, Daniele"]
[Black "Kalavannan, Koby"]
[Result "1-0"]
[Annotator "TA"]
[ECO "B38"]
[WhiteElo "2600"]
[BlackElo "2279"]
[PlyCount "115"]
[EventDate "2025.03.14"]
[EventType "swiss"]
[EventCountry "ROU"]
[SourceTitle "playchess.com"]
[Source "ChessBase"]
[SourceQuality "1"]
[TimeControl "40/5400+30:1800+30"]

{[%evp 25,115,47,48,35,35,39,39,30,34,30,60,55,52,60,56,70,61,57,57,59,53,45,56,19,29,31,85,70,98,97,99,95,95,91,92,94,127,138,119,117,167,159,152,166,185,184,234,227,232,225,314,295,320,304,356,333,303,275,294,295,624,342,526,559,549,555,491,329,468,452,431,426,581,275,601,595,604,601,584,546,1235,1291,1280,1196,1438,1387,1789,1738,1800,1501,2389,2281]} 1. e4 {[%emt 0:00:09]} c5 {[%emt 0:01:00]} 2. Nf3 {[%emt 0:00:24]} Nc6 {[%emt 0:00:12]} 3. d4 {[%emt 0:00:46]} cxd4 {[%emt 0:00:15]} 4. Nxd4 {[%emt 0:00:08]} g6 {[%emt 0:00:30]} 5. c4 {[%emt 1:31:33]} Bg7 {[%emt 0:00:28]} 6. Be3 {[%emt 0:00:00]} Qb6 {[%emt 0:00:15]} 7. Nb3 {[%emt 0:00:00]} Qd8 {[%emt 0:00:09]} 8. Qd2 {[%emt 0:00:00]} d6 {[%emt 0:00:29]} 9. Nc3 {[%emt 0:00:00]} Nf6 {[%emt 0:00:11]} 10. Be2 {[%emt 0:00:00]} Ng4 {[%emt 0:06:58]} 11. Bxg4 {[%emt 0:00:00]} Bxg4 {[%emt 0:00:03]} 12. Nd4 {[%emt 0:00:00]} O-O {[%emt 0:07:55]} 13. O-O {[%emt 0:00:00]} Qa5 {[%emt 0:05:39]} 14. b3 $5 {[%emt 0:00:00][%mdl 4] A promising side line. B38: Sicilian: Maroczy Bind with 5...Bg7 and 7...0-0.} Rfc8 {[%emt 0:02:18]} 15. Rac1 {[%emt 0:00:00]} a6 {[%emt 0:04:15]} 16. f3 {[%emt 0:00:00] White is slightly better.} Bd7 {[%emt 0:00:27][%cal Ob7b5]} 17. Rfd1 {[%emt 0:00:00]} Rab8 {[%emt 0:03:23]} 18. Nd5 {[%emt 0:00:00]} Qxd2 $146 {[%emt 0:06:42]} (18... Qd8 19. a4 Nxd4 20. Bxd4 b5 21. Bxg7 Kxg7 22. cxb5 axb5 23. a5 Be6 24. Rxc8 Rxc8 25. Nb6 Rc6 26. Rc1 Qc7 27. Rxc6 Qxc6 {1-0 Cox,J-Moe,M (2365) Copenhagen Open-04 (Politiken Cup-03) 1982 (5)}) 19. Rxd2 {[%emt 0:00:00] [#]} Bxd4 {[%emt 0:00:39]} 20. Bxd4 {[%emt 0:00:00]} Be6 {[%emt 0:00:21]} 21. Nb6 {[%emt 0:00:00] White is much more active.} Rf8 {[%emt 0:04:44]} 22. Bc3 {[%emt 0:00:00]} Rbd8 {[%emt 0:05:57]} 23. Rcd1 {[%emt 0:00:00]} f6 {[%emt 0:01:52]} 24. b4 {[%emt 0:00:00]} Kf7 {[%emt 0:01:44]} 25. a4 {[%emt 0:00:00]} Nb8 {[%emt 0:13:32]} (25... Rde8 $14) 26. c5 $16 {[%emt 0:00:00][%cal Rc5d6] White stays focused until the end.} Bb3 {[%emt 0:00:08] Black is weak on the dark squares} 27. Rb1 {[%emt 0:00:00]} Be6 {[%emt 0:00:11] [#]} 28. cxd6 $1 {[%emt 0:00:00]} Rxd6 {[%emt 0:00:01]} 29. Rxd6 {[%emt 0:00:00]} exd6 {[%emt 0:00:01]} 30. Rd1 $36 {[%emt 0:00:00][%mdl 2048] White is on the roll.} Rd8 {[%emt 0:09:13]} 31. b5 {[%emt 0:00:00]} axb5 {[%emt 0:02:45]} 32. axb5 {[%emt 0:00:00]} f5 {[%emt 0:02:32]} (32... d5 $16 33. Be1 (33. exd5 Bd7 $16) (33. Nxd5 Rc8 $16) 33... h5) 33. Bb4 {[%emt 0:00:00]} fxe4 {[%emt 0:00:39]} 34. fxe4 {[%emt 0:00:00]} (34. Bxd6 Bb3 35. Rd4 Ke6 $15) 34... Bg4 {[%emt 0:03:26]} 35. Rd2 {[%emt 0:00:00]} (35. Rxd6 Rxd6 36. Bxd6 Nd7 $14) 35... Be6 {[%emt 0:12:58]} (35... g5 {was called for.} 36. Nc4 (36. Bxd6 Be6 $18) (36. Rxd6 Rxd6 37. Bxd6 Nd7 $14) 36... Kf6) 36. Bxd6 $18 {[%emt 0:00:00]} Bb3 {[%emt 0:00:04]} 37. e5 {[%emt 0:00:00]} Ke6 {[%emt 0:02:24]} 38. h3 {[%emt 0:00:00]} Kf5 {[%emt 0:00:39]} 39. Rd4 {[%emt 0:00:00]} h5 {[%emt 0:01:29]} 40. Kf2 {[%emt 0:00:00]} g5 {[%emt 0:02:51]} 41. g3 {[%emt 0:33:30]} Bf7 {[%emt 0:05:47]} 42. Ke3 {[%emt 0:00:00]} Be8 $2 {[%emt 0:00:45]} (42... Nd7) 43. g4+ {[%emt 0:00:00]} hxg4 {[%emt 0:00:14]} (43... Kg6 $142 44. e6 Bxb5 45. gxh5+ Kxh5) 44. hxg4+ {[%emt 0:00:00]} Kg6 {[%emt 0:06:03]} 45. Bxb8 {[%emt 0:00:00]} Rxb8 {[%emt 0:00:24][%mdl 4096] Endgame KRB-KRN. White is a pawn up.} 46. Rd5 {[%emt 0:00:00]} Bf7 {[%emt 0:04:13]} (46... Kf7 $142 47. Nc4 Ke7) 47. Rd6+ {[%emt 0:00:00]} Kg7 {[%emt 0:00:01]} 48. Kd4 {[%emt 0:00:00]} Rh8 {[%emt 0:02:19]} 49. Nd7 {[%emt 0:00:00]} (49. e6 $142 {[%cal Od6d7] and Rd7! would now be decisive} Be8 50. Kc5) 49... Rh4 $2 {[%emt 0:03:34]} (49... Rh1 50. Nc5 Rg1) 50. Nf6 {[%emt 0:00:00] White is clearly winning.} Rh1 {[%emt 0:00:03]} 51. Rb6 {[%emt 0:00:00]} Rd1+ {[%emt 0:00:24]} 52. Kc5 {[%emt 0:00:00]} Rc1+ {[%emt 0:02:21]} 53. Kd6 {[%emt 0:00:00]} Rd1+ {[%emt 0:02:14]} 54. Ke7 {[%emt 0:00:00]} Re1 {[%emt 0:01:24]} 55. e6 {[%emt 0:00:00]} (55. Rxb7 Rxe5+ 56. Kd6 Re6+ (56... Kxf6 57. Rxf7+ Kxf7 58. Kxe5 Ke7 59. b6 Kd7 60. Kd5 Kd8 61. Kd6) 57. Kc5 Kxf6 $19) 55... Kg6 {[%emt 0:01:50]} 56. Nd7 {[%emt 0:00:49]} (56. Rxb7 $2 {too greedy.} Rxe6+ 57. Kd7 Rxf6 $19 (57... Kxf6 $2 58. Rb8 $19)) 56... Kg7 {[%emt 0:00:08]} 57. Nc5 {[%emt 0:02:21]} (57. Rxb7 Bxe6 58. Kd6 Kf7 $16) 57... Re3 {[%emt 0:01:36]} 58. Rxb7 {[%emt 0:00:30] Weighted Error Value: White=0.24 (precise) /Black=0.83  Mistake:       	White=1     	Black=7      Inaccurate:     	White=3     	Black=5      OK:         	White=8     	Black=9      Best:        	White=5     	Black=2      Strong:       	White=1     	---} 1-0